lending/lending_fUSD_20240112
["ID","MTS","AMOUNT","RATE_DAILY","PERIOD"]
[311352719,1705067440676,-500.0,0.00022586,2]
[311352721,1705067440685,-500.0,0.00022586,2]
[311352723,1705067440694,-500.0,0.00022586,2]
[311352725,1705067440703,-500.0,0.00022586,2]
[311352727,1705067440712,-500.0,0.00022586,2]
[311352729,1705067440722,-500.0,0.00022586,2]
[311352731,1705067440730,-500.0,0.00022586,2]
[311352733,1705067440740,-500.0,0.00022586,2]
[311352735,1705067440751,-500.0,0.00022586,2]
[311352737,1705067440759,-500.0,0.00022586,2]
[311352739,1705067440770,-500.0,0.00022586,2]
[311352741,1705067440779,-500.0,0.00022586,2]
[311352743,1705067440788,-500.0,0.00022586,2]
[311352745,1705067440797,-500.0,0.00022586,2]
[311352747,1705067440806,-500.0,0.00022586,2]
[311352749,1705067440814,-500.0,0.00022586,2]
[311352751,1705067440823,-500.0,0.00022586,2]
[311352753,1705067440832,-500.0,0.00022586,2]
[311352755,1705067440840,-169.88962099,0.00022586,2]
[311352757,1705067440849,-500.0,0.00022586,2]
[311352759,1705067440858,-500.0,0.00022586,2]
[311352761,1705067440867,-500.0,0.00022586,2]
[311352763,1705067440876,-500.0,0.00022586,2]
[311352765,1705067440885,-500.0,0.00022586,2]
[311352767,1705067440894,-500.0,0.00022586,2]
[311352769,1705067440903,-500.0,0.00022586,2]
[311352771,1705067440913,-500.0,0.00022586,2]
[311352773,1705067440922,-500.0,0.00022586,2]
[311352775,1705067440932,-500.0,0.00022586,2]
[311352777,1705067440941,-500.0,0.00022586,2]
[311352779,1705067440950,-500.0,0.00022586,2]
[311352781,1705067440960,-500.0,0.00022586,2]
[311352783,1705067440969,-500.0,0.00022586,2]
[311352785,1705067440978,-500.0,0.00022586,2]
[311352787,1705067440987,-500.0,0.00022586,2]
[311352789,1705067440996,-500.0,0.00022586,2]
[311352791,1705067441004,-532.55,0.00022586,2]
[311352793,1705067441013,-500.0,0.00022586,2]
[311352795,1705067441022,-500.0,0.00022586,2]
[311352797,1705067441030,-500.0,0.00022586,2]
[311352799,1705067441039,-571.03,0.00022586,2]
[311352800,1705067441048,-500.0,0.00022586,2]
[311352802,1705067441058,-500.0,0.00022586,2]
[311352804,1705067441066,-500.0,0.00022586,2]
[311352806,1705067441075,-500.0,0.00022586,2]
[311352808,1705067441084,-500.0,0.00022586,2]
[311352811,1705067441093,-500.0,0.00022586,2]
[311352812,1705067441103,-500.0,0.00022586,2]
[311352814,1705067441112,-500.0,0.00022586,2]
[311352817,1705067441121,-500.0,0.00022586,2]
[311352818,1705067441130,-500.0,0.00022586,2]
[311352821,1705067441139,-500.0,0.00022586,2]
[311352823,1705067441148,-250.0,0.00022586,2]
[311352824,1705067441158,-500.0,0.00022586,2]
[311352827,1705067441168,-500.0,0.00022586,2]
[311352829,1705067441177,-500.0,0.00022586,2]
[311352830,1705067441186,-500.0,0.00022586,2]
[311352833,1705067441195,-500.0,0.00022586,2]
[311352834,1705067441204,-500.0,0.00022586,2]
[311352836,1705067441213,-500.0,0.00022586,2]
[311352838,1705067441222,-500.0,0.00022586,2]
[311352840,1705067441232,-500.0,0.00022586,2]
[311352842,1705067441242,-500.0,0.00022586,2]
[311352844,1705067441252,-500.0,0.00022586,2]
[311352846,1705067441261,-500.0,0.00022586,2]
[311352849,1705067441270,-500.0,0.00022586,2]
[311352851,1705067441280,-500.0,0.00022586,2]
[311352853,1705067441289,-500.0,0.00022586,2]
[311352854,1705067441298,-500.0,0.00022586,2]
[311352856,1705067441307,-500.0,0.00022586,2]
[311352858,1705067441316,-500.0,0.00022586,2]
[311352860,1705067441326,-617.06,0.00022586,2]
[311352863,1705067441335,-500.0,0.00022586,2]
[311352864,1705067441344,-313.43377431,0.00022586,2]
[311352866,1705067441354,-500.03,0.00022586,2]
[311352868,1705067441363,-500.0,0.00022586,2]
[311352870,1705067441372,-900.49,0.00022586,2]
[311352872,1705067441381,-500.0,0.00022586,2]
[311352874,1705067441390,-500.0,0.00022586,2]
[311352877,1705067441399,-500.0,0.00022586,2]
[311352878,1705067441408,-500.0,0.00022586,2]
[311352880,1705067441418,-500.0,0.00022586,2]
[311352882,1705067441427,-500.0,0.00022586,2]
[311352884,1705067441436,-500.0,0.00022586,2]
[311352886,1705067441445,-500.0,0.00022586,2]
[311352888,1705067441455,-286.08945701,0.00022586,2]
[311352891,1705067441464,-500.0,0.00022586,2]
[311352892,1705067441473,-500.0,0.00022586,2]
[311352894,1705067441483,-500.0,0.00022586,2]
[311352896,1705067441491,-580.22,0.00022586,2]
[311352898,1705067441503,-500.0,0.00022586,2]
[311352900,1705067441511,-500.0,0.00022586,2]
[311352902,1705067441520,-500.0,0.00022586,2]
[311352904,1705067441530,-500.0,0.00022586,2]
[311352906,1705067441539,-500.0,0.00022586,2]
[311352908,1705067441549,-500.0,0.00022586,2]
[311352910,1705067441559,-500.0,0.00022586,2]
[311352912,1705067441568,-500.0,0.00022586,2]
[311352914,1705067441577,-500.0,0.00022586,2]
[311352916,1705067441587,-500.0,0.00022586,2]
[311352918,1705067441597,-500.0,0.00022586,2]
[311352920,1705067441608,-500.0,0.00022586,2]
[311352922,1705067441617,-500.0,0.00022586,2]
[311352924,1705067441627,-500.0,0.00022586,2]
[311352926,1705067441636,-500.0,0.00022586,2]
[311352928,1705067441646,-500.0,0.00022586,2]
[311352930,1705067441657,-500.0,0.00022586,2]
[311352932,1705067441667,-988.76,0.00022586,2]
[311352934,1705067441677,-500.0,0.00022586,2]
[311352936,1705067441686,-500.0,0.00022586,2]
[311352938,1705067441695,-500.0,0.00022586,2]
[311352939,1705067441705,-536.8,0.00022586,2]
[311352941,1705067441716,-500.0,0.00022586,2]
[311352944,1705067441726,-676.74,0.00022586,2]
[311352946,1705067441736,-594.36,0.00022586,2]
[311352948,1705067441747,-500.0,0.00022586,2]
[311352949,1705067441757,-500.0,0.00022586,2]
[311352951,1705067441767,-500.0,0.00022586,2]
[311352954,1705067441777,-442.60140401,0.00022586,2]
[311352955,1705067441787,-500.0,0.00022586,2]
[311352957,1705067441800,-572.67,0.00022586,2]
[311352960,1705067441810,-500.0,0.00022586,2]
[311352961,1705067441820,-500.0,0.00022586,2]
[311352963,1705067441830,-500.0,0.00022586,2]
[311352965,1705067441840,-500.0,0.00022586,2]
[311352967,1705067441850,-543.4,0.00022586,2]
[311352968,1705067441859,-500.0,0.00022586,2]
[311352969,1705067441869,-500.0,0.00022586,2]
[311352970,1705067441878,-500.0,0.00022586,2]
[311352971,1705067441888,-686.86,0.00022586,2]
[311352972,1705067441897,-500.0,0.00022586,2]
[311352973,1705067441907,-500.0,0.00022586,2]
[311352974,1705067441917,-500.0,0.00022586,2]
[311352975,1705067441927,-570.20048308,0.00022586,2]
[311352977,1705067441937,-500.0,0.00022586,2]
[311352979,1705067441947,-513.03,0.00022586,2]
[311352981,1705067441957,-500.0,0.00022586,2]
[311352983,1705067441968,-717.1,0.00022586,2]
[311352985,1705067441976,-500.0,0.00022586,2]
[311352987,1705067441986,-915.79,0.00022586,2]
[311352989,1705067441997,-500.0,0.00022586,2]
[311352991,1705067442006,-299.23385102,0.00022586,2]
[311352993,1705067442017,-628.12,0.00022586,2]
[311352995,1705067442026,-500.0,0.00022586,2]
[311352997,1705067442035,-500.0,0.00022586,2]
[311352999,1705067442044,-500.0,0.00022586,2]
[311353001,1705067442053,-500.0,0.00022586,2]
[311353003,1705067442063,-578.39,0.00022586,2]
[311353004,1705067442074,-500.0,0.00022586,2]
[311353007,1705067442084,-500.0,0.00022586,2]
[311353008,1705067442094,-865.61,0.00022586,2]
[311353010,1705067442104,-500.0,0.00022586,2]
[311353013,1705067442114,-500.0,0.00022586,2]
[311353014,1705067442126,-504.98,0.00022586,2]
[311353016,1705067442135,-500.0,0.00022586,2]
[311353019,1705067442145,-500.0,0.00022586,2]
[311353020,1705067442154,-522.44789241,0.00022586,2]
[311353022,1705067442163,-785.43,0.00022586,2]
[311353024,1705067442173,-500.0,0.00022586,2]
[311353026,1705067442182,-500.0,0.00022586,2]
[311353028,1705067442191,-500.0,0.00022586,2]
[311353030,1705067442202,-500.0,0.00022586,2]
[311353033,1705067442212,-500.0,0.00022586,2]
[311353034,1705067442221,-500.0,0.00022586,2]
[311353037,1705067442231,-592.6,0.00022586,2]
[311353038,1705067442240,-802.88,0.00022586,2]
[311353040,1705067442250,-500.0,0.00022586,2]
[311353042,1705067442259,-1046.21,0.00022586,2]
[311353044,1705067442268,-500.0,0.00022586,2]
[311353047,1705067442278,-500.0,0.00022586,2]
[311353048,1705067442287,-500.0,0.00022586,2]
[311353051,1705067442297,-1019.63,0.00022586,2]
[311353053,1705067442307,-501.58,0.00022586,2]
[311353054,1705067442316,-500.0,0.00022586,2]
[311353056,1705067442325,-500.0,0.00022586,2]
[311353058,1705067442334,-1762.58,0.00022586,2]
[311353060,1705067442343,-500.0,0.00022586,2]
[311353062,1705067442353,-500.0,0.00022586,2]
[311353064,1705067442362,-742.28,0.00022586,2]
[311353066,1705067442371,-500.0,0.00022586,2]
[311353068,1705067442381,-1000.0,0.00022586,2]
[311353070,1705067442391,-500.0,0.00022586,2]
[311353072,1705067442400,-500.0,0.00022586,2]
[311353075,1705067442410,-500.0,0.00022586,2]
[311353076,1705067442420,-500.0,0.00022586,2]
[311353079,1705067442429,-500.0,0.00022586,2]
[311353080,1705067442438,-551.57,0.00022586,2]
[311353083,1705067442449,-544.63,0.00022586,2]
[311353084,1705067442459,-500.0,0.00022586,2]
[311353087,1705067442469,-500.0,0.00022586,2]
[311353089,1705067442479,-500.0,0.00022586,2]
[311353090,1705067442488,-500.0,0.00022586,2]
[311353092,1705067442501,-500.0,0.00022586,2]
[311353094,1705067442510,-511.99,0.00022586,2]
[311353096,1705067442519,-500.0,0.00022586,2]
[311353098,1705067442528,-500.0,0.00022586,2]
[311353100,1705067442537,-500.0,0.00022586,2]
[311353102,1705067442546,-500.0,0.00022586,2]
[311353104,1705067442555,-500.0,0.00022586,2]
[311353106,1705067442564,-513.65,0.00022586,2]
[311353108,1705067442573,-500.0,0.00022586,2]
[311353110,1705067442582,-500.0,0.00022586,2]
[311353112,1705067442591,-500.0,0.00022586,2]
[311353114,1705067442600,-500.0,0.00022586,2]
[311353116,1705067442609,-500.0,0.00022586,2]
[311353118,1705067442618,-500.0,0.00022586,2]
[311353120,1705067442627,-500.0,0.00022586,2]
[311353122,1705067442636,-500.0,0.00022586,2]
[311353124,1705067442645,-212.49606579,0.00022586,2]
[311353127,1705067442654,-522.55,0.00022586,2]
[311353129,1705067442663,-683.51,0.00022586,2]
[311353131,1705067442672,-500.0,0.00022586,2]
[311353133,1705067442681,-924.0,0.00022586,2]
[311353135,1705067442689,-500.0,0.00022586,2]
[311353137,1705067442699,-500.0,0.00022586,2]
[311353140,1705067442708,-500.0,0.00022586,2]
[311353142,1705067442717,-500.0,0.00022586,2]
[311353144,1705067442726,-500.0,0.00022586,2]
[311353146,1705067442735,-677.56,0.00022586,2]
[311353148,1705067442743,-500.0,0.00022586,2]
[311353150,1705067442754,-500.0,0.00022586,2]
[311353152,1705067442763,-500.0,0.00022586,2]
[311353155,1705067442772,-500.0,0.00022586,2]
[311353158,1705067442782,-500.0,0.00022586,2]
[311353161,1705067442791,-500.0,0.00022586,2]
[311353164,1705067442800,-500.0,0.00022586,2]
[311353167,1705067442808,-500.0,0.00022586,2]
[311353170,1705067442818,-612.68,0.00022586,2]
[311353174,1705067442827,-500.0,0.00022586,2]
[311353178,1705067442836,-500.0,0.00022586,2]
[311353183,1705067442846,-500.0,0.00022586,2]
[311353186,1705067442855,-500.0,0.00022586,2]
[311353189,1705067442863,-590.15,0.00022586,2]
[311353194,1705067442872,-500.0,0.00022586,2]
[311353198,1705067442881,-500.0,0.00022586,2]
[311353203,1705067442891,-500.0,0.00022586,2]
[311353207,1705067442900,-505.02,0.00022586,2]
[311353212,1705067442909,-500.0,0.00022586,2]
[311353215,1705067442918,-500.0,0.00022586,2]
[311353219,1705067442926,-548.99,0.00022586,2]
[311353223,1705067442935,-500.0,0.00022586,2]
[311353227,1705067442943,-543.6,0.00022586,2]
[311353230,1705067442952,-500.0,0.00022586,2]
[311353233,1705067442961,-632.89,0.00022586,2]
[311353238,1705067442971,-500.0,0.00022586,2]
[311353243,1705067442982,-500.0,0.00022586,2]
[311353247,1705067442991,-500.0,0.00022586,2]
[311353249,1705067443000,-1092.03,0.00022586,2]
[311353252,1705067443009,-500.0,0.00022586,2]
[311353255,1705067443018,-710.83,0.00022586,2]
[311353258,1705067443027,-545.64,0.00022586,2]
[311353262,1705067443036,-533.57,0.00022586,2]
[311353266,1705067443045,-500.0,0.00022586,2]
[311353271,1705067443054,-500.0,0.00022586,2]
[311353275,1705067443063,-547.06,0.00022586,2]
[311353277,1705067443071,-1000.0,0.00022586,2]
[311353283,1705067443081,-1007.67,0.00022586,2]
[311353285,1705067443091,-1191.64,0.00022586,2]
[311353289,1705067443100,-500.0,0.00022586,2]
[311353294,1705067443109,-653.87,0.00022586,2]
[311353298,1705067443118,-500.0,0.00022586,2]
[311353301,1705067443128,-567.05,0.00022586,2]
[311353303,1705067443137,-616.57,0.00022586,2]
[311353305,1705067443146,-920.08,0.00022586,2]
[311353308,1705067443158,-500.0,0.00022586,2]
[311353309,1705067443167,-500.0,0.00022586,2]
[311353311,1705067443177,-500.0,0.00022586,2]
[311353314,1705067443186,-500.0,0.00022586,2]
[311353316,1705067443196,-500.0,0.00022586,2]
[311353317,1705067443205,-500.0,0.00022586,2]
[311353320,1705067443214,-792.43,0.00022586,2]
[311353322,1705067443223,-500.0,0.00022586,2]
[311353323,1705067443233,-500.0,0.00022586,2]
[311353326,1705067443242,-717.68,0.00022586,2]
[311353327,1705067443255,-500.0,0.00022586,2]
[311353329,1705067443264,-615.74,0.00022586,2]
[311353332,1705067443273,-500.0,0.00022586,2]
[311353334,1705067443283,-500.0,0.00022586,2]
[311353336,1705067443292,-549.71,0.00022586,2]
[311353338,1705067443301,-533.96,0.00022586,2]
[311353340,1705067443310,-500.0,0.00022586,2]
[311353342,1705067443319,-545.26,0.00022586,2]
[311353344,1705067443329,-500.0,0.00022586,2]
[311353345,1705067443338,-500.0,0.00022586,2]
[311353347,1705067443348,-477.74654257,0.00022586,2]
[311353349,1705067443357,-500.0,0.00022586,2]
[311353352,1705067443366,-500.0,0.00022586,2]
[311353353,1705067443376,-526.4,0.00022586,2]
[311353356,1705067443385,-753.76,0.00022586,2]
[311353358,1705067443395,-500.0,0.00022586,2]
[311353359,1705067443403,-500.0,0.00022586,2]
[311353361,1705067443413,-500.0,0.00022586,2]
[311353363,1705067443423,-500.0,0.00022586,2]
[311353365,1705067443432,-500.0,0.00022586,2]
[311353367,1705067443442,-500.0,0.00022586,2]
[311353369,1705067443451,-568.06,0.00022586,2]
[311353371,1705067443460,-500.0,0.00022586,2]
[311353373,1705067443470,-500.0,0.00022586,2]
[311353375,1705067443479,-500.0,0.00022586,2]
[311353377,1705067443489,-500.0,0.00022586,2]
[311353379,1705067443501,-500.0,0.00022586,2]
[311353381,1705067443510,-500.0,0.00022586,2]
[311353383,1705067443519,-806.29,0.00022586,2]
[311353385,1705067443528,-500.0,0.00022586,2]
[311353387,1705067443536,-500.0,0.00022586,2]
[311353389,1705067443545,-500.0,0.00022586,2]
[311353391,1705067443555,-500.0,0.00022586,2]
[311353393,1705067443564,-500.0,0.00022586,2]
[311353395,1705067443573,-500.0,0.00022586,2]
[311353397,1705067443582,-222.21,0.00022586,2]
[311353399,1705067443591,-500.0,0.00022586,2]
[311353401,1705067443600,-848.08,0.00022586,2]
[311353403,1705067443609,-500.0,0.00022586,2]
[311353405,1705067443619,-977.29,0.00022586,2]
[311353407,1705067443627,-500.0,0.00022586,2]
[311353409,1705067443637,-500.0,0.00022586,2]
[311353411,1705067443645,-500.0,0.00022586,2]
[311353413,1705067443654,-500.0,0.00022586,2]
[311353428,1705067443781,-500.0,0.00022586,2]
[311353431,1705067443805,-500.0,0.00022586,2]
[311353433,1705067443814,-500.0,0.00022586,2]
[311353435,1705067443824,-500.0,0.00022586,2]
[311353436,1705067443833,-516.56,0.00022586,2]
[311353438,1705067443842,-300.0,0.00022586,2]
[311353440,1705067443851,-500.0,0.00022586,2]
[311353442,1705067443860,-500.0,0.00022586,2]
[311353444,1705067443872,-500.0,0.00022586,2]
[311353446,1705067443881,-500.0,0.00022586,2]
[311353448,1705067443890,-500.0,0.00022586,2]
[311353450,1705067443900,-764.31,0.00022586,2]
[311353452,1705067443909,-555.48,0.00022586,2]
[311353454,1705067443919,-500.0,0.00022586,2]
[311353456,1705067443928,-500.0,0.00022586,2]
[311353458,1705067443937,-500.0,0.00022586,2]
[311353460,1705067443947,-500.0,0.00022586,2]
[311353462,1705067443956,-675.05,0.00022586,2]
[311353464,1705067443966,-500.0,0.00022586,2]
[311353466,1705067443975,-500.0,0.00022586,2]
[311353468,1705067443984,-500.0,0.00022586,2]
[311353470,1705067443993,-500.0,0.00022586,2]
[311353471,1705067444003,-500.0,0.00022586,2]
[311353472,1705067444013,-500.0,0.00022586,2]
[311353473,1705067444023,-500.0,0.00022586,2]
[311353474,1705067444032,-500.0,0.00022586,2]
[311353475,1705067444041,-696.67,0.00022586,2]
[311353476,1705067444051,-500.0,0.00022586,2]
[311353477,1705067444061,-549.27,0.00022586,2]
[311353478,1705067444070,-537.5,0.00022586,2]
[311353479,1705067444079,-794.27,0.00022586,2]
[311353480,1705067444088,-500.0,0.00022586,2]
[311353481,1705067444098,-1478.94,0.00022586,2]
[311353482,1705067444108,-2259.65,0.00022586,2]
[311353484,1705067444118,-592.72,0.00022586,2]
[311353485,1705067444129,-500.0,0.00022586,2]
[311353488,1705067444139,-500.0,0.00022586,2]
[311353490,1705067444149,-508.59,0.00022586,2]
[311353492,1705067444159,-500.0,0.00022586,2]
[311353494,1705067444168,-500.0,0.00022586,2]
[311353496,1705067444178,-1082.32,0.00022586,2]
[311353498,1705067444187,-5818.98,0.00022586,2]
[311353499,1705067444197,-613.36,0.00022586,2]
[311353502,1705067444208,-500.0,0.00022586,2]
[311353503,1705067444217,-500.0,0.00022586,2]
[311353506,1705067444227,-500.0,0.00022586,2]
[311353508,1705067444242,-500.0,0.00022586,2]
[311353510,1705067444253,-500.0,0.00022586,2]
[311353512,1705067444262,-500.0,0.00022586,2]
[311353514,1705067444272,-500.0,0.00022586,2]
[311353517,1705067444283,-560.75,0.00022586,2]
[311353519,1705067444293,-500.0,0.00022586,2]
[311353521,1705067444303,-501.17,0.00022586,2]
[311353523,1705067444313,-500.0,0.00022586,2]
[311353525,1705067444322,-941.07,0.00022586,2]
[311353527,1705067444333,-568.7,0.00022586,2]
[311353529,1705067444342,-500.0,0.00022586,2]
[311353531,1705067444352,-500.0,0.00022586,2]
[311353533,1705067444362,-610.82,0.00022586,2]
[311353535,1705067444372,-2025.81,0.00022586,2]
[311353537,1705067444382,-627.28,0.00022586,2]
[311353540,1705067444392,-793.23,0.00022586,2]
[311353542,1705067444402,-500.0,0.00022586,2]
[311353544,1705067444412,-500.0,0.00022586,2]
[311353546,1705067444422,-500.0,0.00022586,2]
[311353548,1705067444431,-500.0,0.00022586,2]
[311353550,1705067444441,-500.0,0.00022586,2]
[311353552,1705067444451,-500.0,0.00022586,2]
[311353554,1705067444461,-500.0,0.00022586,2]
[311353556,1705067444471,-500.0,0.00022586,2]
[311353558,1705067444480,-278.70636052,0.00022586,2]
[311353560,1705067444490,-500.0,0.00022586,2]
[311353562,1705067444502,-500.0,0.00022586,2]
[311353564,1705067444512,-1268.72,0.00022586,2]
[311353566,1705067444522,-500.0,0.00022586,2]
[311353568,1705067444531,-3058.91,0.00022586,2]
[311353570,1705067444541,-500.0,0.00022586,2]
[311353573,1705067444551,-645.36,0.00022586,2]
[311353575,1705067444565,-500.0,0.00022586,2]
[311353577,1705067444575,-544.57289968,0.00022586,2]
[311353579,1705067444585,-500.0,0.00022586,2]
[311353582,1705067444596,-500.0,0.00022586,2]
[311353584,1705067444606,-594.49,0.00022586,2]
[311353586,1705067444616,-500.0,0.00022586,2]
[311353588,1705067444625,-500.0,0.00022586,2]
[311353590,1705067444636,-523.76,0.00022586,2]
[311353592,1705067444645,-967.54,0.00022586,2]
[311353594,1705067444655,-500.0,0.00022586,2]
[311353596,1705067444665,-698.09,0.00022586,2]
[311353598,1705067444675,-500.0,0.00022586,2]
[311353600,1705067444685,-1774.52,0.00022586,2]
[311353602,1705067444695,-500.0,0.00022586,2]
[311353604,1705067444707,-500.0,0.00022586,2]
[311353607,1705067444717,-672.72,0.00022586,2]
[311353609,1705067444728,-1366.67,0.00022586,2]
[311353611,1705067444738,-640.24,0.00022586,2]
[311353613,1705067444750,-650.29,0.00022586,2]
[311353615,1705067444761,-1109.5,0.00022586,2]
[311353617,1705067444772,-653.12,0.00022586,2]
[311353619,1705067444782,-500.0,0.00022586,2]
[311353621,1705067444791,-2402.79,0.00022586,2]
[311353623,1705067444802,-500.0,0.00022586,2]
[311353625,1705067444812,-288.18901564,0.00022586,2]
[311353627,1705067444822,-500.0,0.00022586,2]
[311353629,1705067444832,-204.10319986,0.00022586,2]
[311353631,1705067444842,-500.0,0.00022586,2]
[311353633,1705067444852,-682.08,0.00022586,2]
[311353635,1705067444862,-2173.55,0.00022586,2]
[311353637,1705067444872,-604.31,0.00022586,2]
[311353640,1705067444882,-500.0,0.00022586,2]
[311353642,1705067444892,-1581.39,0.00022586,2]
[311353644,1705067444904,-500.0,0.00022586,2]
[311353646,1705067444914,-500.0,0.00022586,2]
[311353648,1705067444924,-1124.99,0.00022586,2]
[311353650,1705067444934,-500.0,0.00022586,2]
[311353652,1705067444943,-500.0,0.00022586,2]
[311353654,1705067444953,-619.21,0.00022586,2]
[311353656,1705067444964,-500.0,0.00022586,2]
[311353658,1705067444974,-500.0,0.00022586,2]
[311353660,1705067444984,-1172.6,0.00022586,2]
[311353662,1705067444994,-500.0,0.00022586,2]
[311353665,1705067445005,-500.0,0.00022586,2]
[311353667,1705067445015,-771.85,0.00022586,2]
[311353669,1705067445025,-613.44,0.00022586,2]
[311353671,1705067445034,-843.5,0.00022586,2]
[311353673,1705067445044,-500.0,0.00022586,2]
[311353675,1705067445053,-752.62,0.00022586,2]
[311353677,1705067445063,-500.0,0.00022586,2]
[311353679,1705067445073,-500.0,0.00022586,2]
[311353681,1705067445083,-500.0,0.00022586,2]
[311353683,1705067445093,-1338.76,0.00022586,2]
[311353685,1705067445102,-570.42,0.00022586,2]
[311353687,1705067445113,-500.0,0.00022586,2]
[311353689,1705067445123,-500.0,0.00022586,2]
[311353691,1705067445133,-500.0,0.00022586,2]
[311353693,1705067445143,-506.47,0.00022586,2]
[311353695,1705067445153,-2558.46,0.00022586,2]
[311353698,1705067445164,-500.0,0.00022586,2]
[311353700,1705067445173,-500.0,0.00022586,2]
[311353702,1705067445183,-500.0,0.00022586,2]
[311353704,1705067445194,-500.0,0.00022586,2]
[311353706,1705067445204,-778.89,0.00022586,2]
[311353708,1705067445215,-500.0,0.00022586,2]
[311353710,1705067445224,-608.12,0.00022586,2]
[311353712,1705067445234,-761.66,0.00022586,2]
[311353714,1705067445243,-500.0,0.00022586,2]
[311353716,1705067445254,-201.26870599,0.00022586,2]
[311353718,1705067445264,-500.0,0.00022586,2]
[311353720,1705067445274,-500.0,0.00022586,2]
[311353723,1705067445284,-606.09,0.00022586,2]
[311353725,1705067445293,-2321.31,0.00022586,2]
[311353727,1705067445303,-503.85,0.00022586,2]
[311353729,1705067445313,-792.73,0.00022586,2]
[311353731,1705067445323,-505.57,0.00022586,2]
[311353733,1705067445333,-986.73,0.00022586,2]
[311353735,1705067445342,-337.93762703,0.00022586,2]
[311353737,1705067445353,-500.0,0.00022586,2]
[311353739,1705067445362,-500.0,0.00022586,2]
[311353741,1705067445372,-1855.62,0.00022586,2]
[311353743,1705067445381,-500.0,0.00022586,2]
[311353745,1705067445391,-500.0,0.00022586,2]
[311353747,1705067445401,-544.3,0.00022586,2]
[311353749,1705067445411,-500.0,0.00022586,2]
[311353751,1705067445420,-922.23,0.00022586,2]
[311353753,1705067445430,-500.0,0.00022586,2]
[311353755,1705067445440,-855.09,0.00022586,2]
[311353758,1705067445450,-1739.46,0.00022586,2]
[311353760,1705067445460,-539.44,0.00022586,2]
[311353762,1705067445470,-500.0,0.00022586,2]
[311353764,1705067445480,-500.0,0.00022586,2]
[311353766,1705067445489,-628.22,0.00022586,2]
[311353768,1705067445500,-500.0,0.00022586,2]
[311353770,1705067445510,-564.76,0.00022586,2]
[311353772,1705067445519,-500.0,0.00022586,2]
[311353774,1705067445529,-500.0,0.00022586,2]
[311353776,1705067445539,-500.0,0.00022586,2]
[311353778,1705067445548,-500.0,0.00022586,2]
[311353780,1705067445558,-500.0,0.00022586,2]
[311353783,1705067445569,-500.0,0.00022586,2]
[311353786,1705067445590,-500.0,0.00022586,2]
[311353788,1705067445600,-500.0,0.00022586,2]
[311353790,1705067445610,-5795.35,0.00022586,2]